bitfinex-derivatives/quotes_BTCF0:USTF0_20250928
["timestamp","ask_amount","ask_price","bid_price","bid_amount"]
[1759051794599,0.62184222,109510.0,109500.0,0.65356462]
[1759051794792,0.89243583,109510.0,109500.0,0.65356462]
[1759051796196,1.72195583,109510.0,109500.0,0.65356462]
[1759051796697,1.45136222,109510.0,109500.0,0.65356462]
[1759051798190,1.44736222,109510.0,109500.0,0.65356462]
[1759051798594,1.43636222,109510.0,109500.0,0.65356462]
[1759051798790,1.44336222,109510.0,109500.0,0.65356462]
[1759051799094,1.44332222,109510.0,109500.0,0.65356462]
[1759051799391,1.44032222,109510.0,109500.0,0.65356462]
[1759051799598,1.44632222,109510.0,109500.0,0.65356462]
[1759051800500,1.44632222,109510.0,109500.0,0.66625462]
[1759051800700,1.44628222,109510.0,109500.0,0.66625462]
[1759051802299,0.14206047,109510.0,109500.0,0.66625462]
[1759051802497,0.11929475,109510.0,109500.0,1.02705462]
[1759051802997,0.12845442,109510.0,109500.0,1.02705462]
[1759051803399,0.11929475,109510.0,109500.0,1.02705462]
[1759051808824,0.11529475,109510.0,109500.0,1.02705462]
[1759051809118,0.11429475,109510.0,109500.0,1.02705462]
[1759051810619,0.14888475,109510.0,109500.0,0.65356462]
[1759051811522,1.27154746,109510.0,109500.0,0.1123774]
[1759051811728,1.00095385,109510.0,109500.0,0.38297101]
[1759051812021,1.27154746,109510.0,109500.0,0.38297101]
[1759051813826,1.30440735,109510.0,109500.0,0.38297101]
[1759051814614,1.03381374,109510.0,109500.0,0.38297101]
[1759051814814,1.30440735,109510.0,109500.0,0.38297101]
[1759051815114,1.30440735,109510.0,109500.0,0.65356462]
[1759051815326,1.27154746,109510.0,109500.0,0.1123774]
[1759051815625,1.27154746,109510.0,109500.0,0.65356462]
[1759051816430,1.18027836,109510.0,109500.0,0.65356462]
[1759051816624,2.00955836,109510.0,109500.0,0.65356462]
[1759051817128,1.18027836,109510.0,109500.0,0.65356462]
[1759051817430,2.00955836,109510.0,109500.0,0.65356462]
[1759051817929,2.10082746,109510.0,109500.0,0.65356462]
[1759051820531,1.83023385,109510.0,109500.0,0.38261904]
[1759051822028,1.00095385,109510.0,109500.0,0.38261904]
[1759051822233,1.83019385,109510.0,109500.0,0.38261904]
[1759051822531,1.00095385,109510.0,109500.0,0.38261904]
[1759051822731,1.83019385,109510.0,109500.0,0.38261904]
[1759051823634,0.90968475,109510.0,109500.0,0.38261904]
[1759051823828,1.33892475,109510.0,109500.0,0.38261904]
[1759051824027,1.32561475,109510.0,109500.0,0.66555068]
[1759051824539,0.96481475,109510.0,109500.0,0.39530904]
[1759051824736,0.96481475,109510.0,109500.0,0.75610904]
[1759051825631,0.97777475,109510.0,109500.0,0.75610904]
[1759051825839,1.06904385,109510.0,109500.0,0.39530904]
[1759051826036,0.97777475,109510.0,109500.0,0.39530904]
[1759051826937,1.06904385,109510.0,109500.0,0.39530904]
[1759051830042,0.97777475,109510.0,109500.0,0.39530904]
[1759051831242,0.97773475,109510.0,109500.0,0.75610904]
[1759051832544,0.97473475,109510.0,109500.0,0.75610904]
[1759051832746,0.97469475,109510.0,109500.0,0.75610904]
[1759051833038,1.06596375,109510.0,109500.0,0.38261904]
[1759051833245,2.09700539,109510.0,109500.0,0.0912774]
[1759051833639,0.1275612,109500.0,109490.0,0.1133207]
[1759051833834,0.78183282,109500.0,109490.0,0.1133207]
[1759051834246,0.51159118,109500.0,109490.0,0.1133207]
[1759051837342,0.05950998,109500.0,109490.0,0.38356234]
[1759051837747,0.51158738,109500.0,109490.0,0.38356234]
[1759051844851,0.51158738,109500.0,109490.0,0.1133207]
[1759051845048,0.51158738,109500.0,109490.0,0.38356234]
[1759051847256,0.04654998,109500.0,109490.0,0.75705234]
[1759051847560,0.55109657,109510.0,109500.0,0.1245374]
[1759051847561,0.10770477,109510.0,109500.0,0.1245374]
[1759051847751,0.10942576,109510.0,109500.0,1.02582068]
[1759051847951,0.10942576,109510.0,109500.0,1.42582068]
[1759051848746,0.09106477,109510.0,109500.0,1.42582068]
[1759051849146,0.01699,109510.0,109500.0,1.42582068]
[1759051849352,0.38244,109530.0,109520.0,0.1257407]
[1759051849663,0.40579913,109530.0,109520.0,0.39598234]
[1759051849859,0.51063153,109530.0,109520.0,0.38329234]
[1759051850359,0.51989226,109530.0,109520.0,0.38329234]
[1759051850960,0.5924863,109530.0,109520.0,0.38329234]
[1759051851663,0.5974863,109530.0,109520.0,0.38329234]
[1759051851960,0.6014863,109530.0,109520.0,0.38329234]
[1759051853560,0.59222557,109530.0,109520.0,0.38329234]
[1759051853764,0.60130337,109530.0,109520.0,0.38329234]
[1759051860460,0.60130337,109530.0,109520.0,0.1130507]
[1759051860662,0.57794424,109530.0,109520.0,0.38329234]
[1759051860957,0.60126386,109530.0,109520.0,0.38329234]
[1759051862371,0.60126386,109530.0,109520.0,0.1130507]
[1759051862569,0.60126386,109530.0,109520.0,0.38329234]
[1759051865071,0.59926386,109530.0,109520.0,0.38329234]
[1759051865375,0.59626386,109530.0,109520.0,0.38329234]
[1759051866874,0.59426386,109530.0,109520.0,0.38329234]
[1759051867079,0.59626386,109530.0,109520.0,0.38329234]
[1759051870877,0.59626386,109530.0,109520.0,0.1130507]
[1759051871077,0.59626386,109530.0,109520.0,0.38329234]
[1759051879680,0.59626386,109530.0,109520.0,0.39598234]
[1759051880680,1.42498386,109530.0,109520.0,0.66597468]
[1759051881382,1.42498386,109530.0,109520.0,0.65328468]
[1759051884389,0.49593366,109530.0,109520.0,0.65328468]
[1759051884591,0.09991366,109530.0,109520.0,1.69689167]
[1759051884888,0.02731962,109530.0,109520.0,1.69689167]
[1759051885290,0.02731962,109530.0,109520.0,2.25545468]
[1759051885484,0.02731962,109530.0,109520.0,1.42677468]
[1759051885684,0.02731962,109530.0,109520.0,2.25545468]
[1759051886793,0.02731962,109530.0,109520.0,1.42677468]
[1759051886991,0.02731962,109530.0,109520.0,2.25545468]
[1759051888891,0.04942962,109530.0,109520.0,2.25541468]
[1759051889090,0.04942962,109530.0,109520.0,1.42677468]
[1759051889293,0.04942962,109530.0,109520.0,2.25541468]
[1759051891688,0.04942962,109530.0,109520.0,1.42677468]
[1759051891892,0.04942962,109530.0,109520.0,2.25541468]
[1759051893590,0.04942962,109530.0,109520.0,0.8865407]
[1759051893794,0.06202962,109530.0,109520.0,1.3024507]
[1759051893993,0.06202962,109530.0,109520.0,1.84268468]
[1759051895194,0.04942962,109530.0,109520.0,1.85537468]
[1759051896697,0.02731962,109530.0,109520.0,1.85537468]
[1759051898490,0.02731962,109530.0,109520.0,2.12549167]
[1759051898693,0.02731962,109530.0,109520.0,2.52549167]
[1759051899192,0.004,109530.0,109520.0,1.7151407]
[1759051899398,0.004,109530.0,109520.0,2.12549167]
[1759051902601,0.002,109530.0,109520.0,2.12949167]
[1759051903001,0.09390914,109540.0,109530.0,0.1257624]
[1759051903202,0.04547008,109540.0,109530.0,1.02679638]
[1759051905506,0.04547008,109540.0,109530.0,1.02779638]
[1759051907407,0.11856113,109540.0,109530.0,1.02779638]
[1759051915126,0.11856113,109540.0,109530.0,1.85627638]
[1759051923128,0.03113508,109550.0,109540.0,0.1245741]
[1759051923322,0.0545046,109550.0,109540.0,1.29572507]
[1759051923923,0.0545046,109550.0,109540.0,1.02560808]
[1759051924324,0.0545046,109550.0,109540.0,1.85404808]
[1759051924627,0.0545046,109550.0,109540.0,1.02560808]
[1759051925327,0.0545046,109550.0,109540.0,1.85404808]
[1759051925328,0.0565046,109550.0,109540.0,1.85404808]
[1759051925630,0.0585046,109550.0,109540.0,1.02560808]
[1759051925826,0.0585046,109550.0,109540.0,1.85404808]
[1759051926027,0.0585046,109550.0,109540.0,1.02560808]
[1759051926227,0.0585046,109550.0,109540.0,1.85404808]
[1759051926428,0.0585046,109550.0,109540.0,1.02560808]
[1759051926723,0.0585046,109550.0,109540.0,1.85404808]
[1759051926928,0.04941952,109550.0,109540.0,1.85404808]
[1759051927330,0.05855196,109550.0,109540.0,1.85404808]
[1759051928132,0.05855196,109550.0,109540.0,1.02560808]
[1759051928331,0.05855196,109550.0,109540.0,1.85404808]
[1759051928833,0.05855196,109550.0,109540.0,1.02560808]
[1759051929036,0.16365766,109550.0,109540.0,1.85400808]
[1759051930134,0.16365766,109550.0,109540.0,1.02560808]
[1759051930433,0.16365766,109550.0,109540.0,1.85400808]
[1759051930624,0.16365766,109550.0,109540.0,1.01413808]
[1759051930828,0.16365766,109550.0,109540.0,1.84253808]
[1759051931335,0.23489557,109550.0,109540.0,1.84253808]
[1759051932034,0.23489557,109550.0,109540.0,1.01413808]
[1759051932237,0.23489557,109550.0,109540.0,1.84253808]
[1759051933731,0.14365987,109550.0,109540.0,1.85400808]
[1759051934335,0.23489557,109550.0,109540.0,1.85400808]
[1759051934936,0.23489557,109550.0,109540.0,1.85396808]
[1759051940441,0.23489557,109550.0,109540.0,1.02560808]
[1759051940641,0.23489557,109550.0,109540.0,1.58374113]
[1759051942648,0.23489557,109550.0,109540.0,0.75538113]
[1759051942843,0.23489557,109550.0,109540.0,1.58374113]
[1759051958865,0.23489557,109550.0,109540.0,0.75538113]
[1759051959068,0.23489557,109550.0,109540.0,1.58362113]
[1759051959867,0.23489557,109550.0,109540.0,0.75538113]
[1759051960069,0.23489557,109550.0,109540.0,1.58362113]
[1759051967074,0.23489557,109550.0,109540.0,0.74391113]
[1759051967275,0.59569557,109550.0,109540.0,1.21127113]
[1759051969377,0.59569557,109550.0,109540.0,1.22274113]
[1759051972672,0.59569557,109550.0,109540.0,0.9527341]
[1759051972878,0.59569557,109550.0,109540.0,1.22274113]
[1759051975383,0.59569557,109550.0,109540.0,0.39458113]
[1759051978184,0.59569557,109550.0,109540.0,0.38311113]
[1759051981682,0.23489557,109550.0,109540.0,0.38311113]
[1759051981884,0.59569557,109550.0,109540.0,0.38311113]
[1759051989493,0.59569557,109550.0,109540.0,0.39458113]
[1759051994693,0.23489557,109550.0,109540.0,0.39458113]
[1759051994898,0.59569557,109550.0,109540.0,0.39458113]
[1759051995794,0.59569557,109550.0,109540.0,0.1245741]
[1759051995993,0.59569557,109550.0,109540.0,0.38311113]
[1759051999389,0.59569557,109550.0,109540.0,0.39458113]
[1759052000200,0.50445987,109550.0,109540.0,0.39458113]
[1759052000401,0.59569557,109550.0,109540.0,0.39458113]
[1759052000602,0.59569557,109550.0,109540.0,0.66456084]
[1759052015926,0.23489557,109550.0,109540.0,0.66456084]
[1759052026128,0.23486282,109550.0,109540.0,0.66456084]
[1759052029324,0.22099282,109550.0,109540.0,0.66456084]
[1759052036233,0.22099282,109550.0,109540.0,0.1245741]
[1759052036531,0.23495282,109550.0,109540.0,0.66456084]
[1759052036732,0.42754989,109570.0,109560.0,0.0912274]
[1759052036922,0.04462705,109570.0,109560.0,0.93716751]
[1759052037119,0.02333705,109570.0,109560.0,1.69796751]
[1759052037525,0.02333705,109570.0,109560.0,1.42797414]
[1759052037926,0.03263131,109570.0,109560.0,1.42797414]
[1759052038327,0.03263131,109570.0,109560.0,1.69796751]
[1759052038531,0.03963131,109570.0,109560.0,1.69796751]
[1759052039139,0.03263131,109570.0,109560.0,1.69796751]
[1759052039331,0.03963131,109570.0,109560.0,1.69796751]
[1759052039540,0.03963131,109570.0,109560.0,2.52576751]
[1759052040034,0.03963131,109570.0,109560.0,2.16496751]
[1759052040235,0.03963131,109570.0,109560.0,2.52576751]
[1759052040738,0.11366563,109570.0,109560.0,2.52576751]
[1759052041136,0.11366563,109570.0,109560.0,2.25577414]
[1759052041339,0.09032858,109570.0,109560.0,2.25577414]
[1759052041837,0.18154768,109570.0,109560.0,2.52572751]
[1759052044125,0.09032858,109570.0,109560.0,2.52572751]
[1759052046640,0.09032858,109570.0,109560.0,1.69796751]
[1759052046840,0.09032858,109570.0,109560.0,2.52564751]
[1759052047436,0.09032858,109570.0,109560.0,1.7156674]
[1759052047644,0.18154768,109570.0,109560.0,2.52564751]
[1759052048743,0.20469166,109570.0,109560.0,1.69796751]
[1759052049042,0.20469166,109570.0,109560.0,2.25565414]
[1759052049243,0.20469166,109570.0,109560.0,1.42797414]
[1759052049542,0.20469166,109570.0,109560.0,2.25561414]
[1759052051242,0.21796166,109570.0,109560.0,0.93674674]
[1759052051447,0.21796166,109570.0,109560.0,0.29326337]
[1759052051448,0.89367624,109570.0,109560.0,0.29326337]
[1759052052241,0.87207503,109570.0,109560.0,0.29326337]
[1759052052443,0.87207503,109570.0,109560.0,0.02327]
[1759052052743,0.87207503,109570.0,109560.0,0.29326337]
[1759052054748,1.69967598,109570.0,109560.0,0.38449077]
[1759052057844,1.69967598,109570.0,109560.0,0.29326337]
[1759052058646,1.69967598,109570.0,109560.0,0.02327]
[1759052058943,1.69967598,109570.0,109560.0,0.29326337]
[1759052060549,1.42968261,109570.0,109560.0,0.3844637]
[1759052062846,1.4505786,109570.0,109560.0,0.2932363]
[1759052063041,0.1264274,109560.0,109550.0,0.3825176]
[1759052063346,0.14957233,109560.0,109550.0,0.3825176]
[1759052065452,0.15057233,109560.0,109550.0,0.3825176]
[1759052067249,0.15157233,109560.0,109550.0,0.3825176]
[1759052070839,1.18233863,109560.0,109550.0,0.02132]
[1759052071040,0.1264441,109540.0,109530.0,0.1125724]
[1759052071344,1.24710703,109540.0,109530.0,0.1125724]
[1759052071550,0.14962073,109540.0,109530.0,0.1125724]
[1759052071748,0.14962073,109540.0,109530.0,0.3825387]
[1759052071749,0.97714073,109540.0,109530.0,0.3825387]
[1759052072349,0.97714073,109540.0,109530.0,0.3865387]
[1759052072753,0.14962073,109540.0,109530.0,0.3865387]
[1759052073053,0.97714073,109540.0,109530.0,0.3865387]
[1759052073240,0.97714073,109540.0,109530.0,0.3895387]
[1759052073954,0.97718073,109540.0,109530.0,0.3895387]
[1759052078651,0.9540041,109540.0,109530.0,0.3895387]
[1759052079058,0.1264441,109540.0,109530.0,0.3895387]
[1759052079258,0.97725879,109540.0,109530.0,0.3895387]
[1759052081059,0.14965879,109540.0,109530.0,0.3895387]
[1759052081257,0.97725879,109540.0,109530.0,0.3895387]
[1759052082360,0.14965879,109540.0,109530.0,0.3895387]
[1759052082560,0.97725879,109540.0,109530.0,0.3895387]
[1759052083158,0.02158,109540.0,109530.0,1.031775]
[1759052083363,1.3148405,109550.0,109540.0,0.1125641]
[1759052083564,1.33805384,109550.0,109540.0,0.3825304]
[1759052084565,1.33805384,109550.0,109540.0,0.3845304]
[1759052084866,1.33805384,109550.0,109540.0,0.3855304]
[1759052086063,1.3148405,109550.0,109540.0,0.3855304]
[1759052086368,1.33805534,109550.0,109540.0,0.3855304]
[1759052086963,1.33805534,109550.0,109540.0,0.02432]
[1759052087267,2.00802164,109550.0,109540.0,0.0942441]
[1759052087762,2.00802164,109550.0,109540.0,0.1155641]
[1759052093671,2.00802164,109550.0,109540.0,0.3855304]
[1759052093672,1.73805534,109550.0,109540.0,0.3855304]
[1759052095466,1.73801534,109550.0,109540.0,0.3855304]
[1759052095672,1.73801054,109550.0,109540.0,0.3855304]
[1759052096671,0.91045054,109550.0,109540.0,0.3855304]
[1759052096872,1.73801054,109550.0,109540.0,0.3855304]
[1759052101278,1.73801054,109550.0,109540.0,0.1155641]
[1759052101472,1.73801054,109550.0,109540.0,0.3855304]
[1759052116789,0.91045054,109550.0,109540.0,0.3855304]
[1759052116992,1.73797054,109550.0,109540.0,0.3855304]
[1759052118182,1.73797054,109550.0,109540.0,0.1155641]
[1759052118380,1.73797054,109550.0,109540.0,0.3855304]
[1759052118892,0.91045054,109550.0,109540.0,0.3855304]
[1759052119090,1.73793054,109550.0,109540.0,0.3855304]
[1759052119792,1.73793054,109550.0,109540.0,0.1155641]
[1759052120092,1.73793054,109550.0,109540.0,0.3855304]
[1759052121287,0.91045054,109550.0,109540.0,0.3855304]
[1759052121493,1.73793054,109550.0,109540.0,0.3855304]
[1759052122692,2.00797788,109550.0,109540.0,0.38561144]
[1759052126108,2.00797788,109550.0,109540.0,0.1155641]
[1759052126307,2.00797788,109550.0,109540.0,0.38561144]
[1759052130908,0.05841484,109550.0,109540.0,0.65565878]
[1759052131211,0.02321484,109550.0,109540.0,1.42052878]
[1759052131508,0.03607484,109550.0,109540.0,1.69057612]
[1759052132003,0.02321484,109550.0,109540.0,1.69057612]
[1759052132210,0.63794,109560.0,109550.0,0.1249457]
[1759052132503,0.66122757,109560.0,109550.0,1.02584038]
[1759052133409,0.04610757,109560.0,109550.0,1.02584038]
[1759052133610,0.04710757,109560.0,109550.0,1.02584038]
[1759052133911,0.05996757,109560.0,109550.0,1.02584038]
[1759052134510,0.06096757,109560.0,109550.0,1.02584038]
[1759052134701,0.06096757,109560.0,109550.0,1.01315038]
[1759052134902,0.15219497,109560.0,109550.0,1.01315038]
[1759052147421,0.15219497,109560.0,109550.0,0.65235038]
[1759052147617,0.15219497,109560.0,109550.0,1.01315038]
[1759052151823,0.15119497,109560.0,109550.0,1.01315038]
[1759052152019,0.15119497,109560.0,109550.0,1.01515038]
[1759052153626,0.15219497,109560.0,109550.0,1.01315038]
[1759052157929,0.15219497,109560.0,109550.0,0.74310304]
[1759052162137,0.15219497,109560.0,109550.0,1.01315038]
[1759052162637,0.15219497,109560.0,109550.0,0.92191468]
[1759052162834,0.15219497,109560.0,109550.0,0.65186734]
[1759052163137,0.15119497,109560.0,109550.0,0.65186734]
[1759052163438,0.15119497,109560.0,109550.0,0.74510304]
[1759052163936,0.15119497,109560.0,109550.0,0.74310304]
[1759052164138,0.15219497,109560.0,109550.0,0.74310304]
[1759052165234,0.15219497,109560.0,109550.0,0.65186734]
[1759052165732,0.15219497,109560.0,109550.0,0.38182]
[1759052165937,0.125124,109540.0,109530.0,0.53984536]
[1759052166140,0.125124,109540.0,109530.0,1.48475714]
[1759052167144,0.125124,109540.0,109530.0,1.48975714]
[1759052167530,0.125124,109540.0,109530.0,1.49275714]
[1759052170732,0.125124,109540.0,109530.0,0.4821124]
[1759052170936,0.75597134,109540.0,109530.0,0.39135974]
[1759052171238,0.77928407,109540.0,109530.0,0.39135974]
[1759052171538,0.41848407,109540.0,109530.0,0.39135974]
[1759052175535,0.05719273,109540.0,109530.0,0.39135974]
[1759052175736,0.32724007,109540.0,109530.0,0.39135974]
[1759052176142,0.30392734,109540.0,109530.0,0.39135974]
[1759052176939,0.03388,109540.0,109530.0,0.75215974]
[1759052178842,0.125124,109540.0,109530.0,0.39135974]
[1759052179844,0.03388,109540.0,109530.0,0.39135974]
[1759052180445,0.03388,109540.0,109530.0,0.75215974]
[1759052182547,0.03388,109540.0,109530.0,0.75217582]
[1759052185545,0.41847493,109540.0,109530.0,0.1213124]
[1759052185737,0.81847493,109540.0,109530.0,0.1213124]
[1759052186542,0.54841151,109540.0,109530.0,0.1213124]
[1759052186746,0.81847493,109540.0,109530.0,0.1213124]
[1759052186949,0.81847493,109540.0,109530.0,0.39137582]
[1759052187550,0.54841151,109540.0,109530.0,0.39137582]
[1759052188443,0.90921151,109540.0,109530.0,0.39137582]
[1759052188846,1.73653151,109540.0,109530.0,0.39137582]
[1759052189947,0.90921151,109540.0,109530.0,0.39137582]
[1759052190349,1.73657151,109540.0,109530.0,0.39137582]
[1759052191554,1.73657151,109540.0,109530.0,0.1213124]
[1759052192052,0.90921151,109540.0,109530.0,0.1213124]
[1759052192353,1.73657151,109540.0,109530.0,0.1213124]
[1759052192954,1.73657151,109540.0,109530.0,0.39137582]
[1759052194255,0.90921151,109540.0,109530.0,0.39137582]
[1759052194450,1.73657151,109540.0,109530.0,0.39137582]
[1759052194754,0.90921151,109540.0,109530.0,0.39137582]
[1759052194958,1.73657151,109540.0,109530.0,0.39137582]
[1759052195550,0.90921151,109540.0,109530.0,0.39137582]
[1759052195750,1.73657151,109540.0,109530.0,0.39137582]
[1759052199553,1.33657151,109540.0,109530.0,0.39137582]
[1759052200763,0.50921151,109540.0,109530.0,0.39137582]
[1759052200955,1.33657151,109540.0,109530.0,0.39137582]
[1759052203863,0.50921151,109540.0,109530.0,0.39137582]
[1759052204069,1.33657151,109540.0,109530.0,0.39137582]
[1759052204269,0.88452741,109540.0,109530.0,0.75217582]
[1759052211069,0.88452741,109540.0,109530.0,0.4821124]
[1759052211372,0.88452741,109540.0,109530.0,0.75217582]
[1759052223274,0.88452741,109540.0,109530.0,0.4821124]
[1759052223477,0.88452741,109540.0,109530.0,0.75217582]
[1759052225686,0.88448741,109540.0,109530.0,0.75217582]
[1759052237793,0.97573151,109540.0,109530.0,0.75217582]
[1759052239091,0.05716741,109540.0,109530.0,0.75217582]
[1759052239291,0.88444741,109540.0,109530.0,0.75217582]
[1759052240486,0.04446741,109540.0,109530.0,1.03492924]
[1759052240687,0.02118,109540.0,109530.0,1.23060138]
[1759052241195,0.02118,109540.0,109530.0,1.16486582]
[1759052242690,0.02118,109540.0,109530.0,1.43486016]
[1759052243090,0.03446,109560.0,109550.0,0.1129057]
[1759052243286,0.8850222,109560.0,109550.0,1.01376346]
[1759052243490,0.0577822,109560.0,109550.0,1.01376346]
[1759052244299,0.0607822,109560.0,109550.0,1.01376346]
[1759052244497,0.0617822,109560.0,109550.0,1.01376346]
[1759052246999,0.004,109560.0,109550.0,1.41376346]
[1759052247387,0.004,109560.0,109550.0,2.24096346]
[1759052247587,0.004,109560.0,109550.0,2.60176346]
[1759052247996,0.004,109560.0,109550.0,2.87179234]
[1759052249000,0.003,109560.0,109550.0,2.87279234]
[1759052249400,0.0563083,109580.0,109570.0,0.02167]
[1759052249594,0.07957626,109580.0,109570.0,0.92252776]
[1759052250603,0.08557626,109580.0,109570.0,0.92252776]
[1759052250805,0.08857626,109580.0,109570.0,0.92252776]
[1759052251103,0.0653083,109580.0,109570.0,1.01374686]
[1759052258712,0.14006556,109580.0,109570.0,1.01374686]
[1759052259409,0.23127636,109580.0,109570.0,1.01374686]
[1759052259807,0.14006556,109580.0,109570.0,1.01374686]
[1759052267711,0.14006556,109580.0,109570.0,0.74371798]
[1759052267914,0.16327908,109580.0,109570.0,0.74371798]
[1759052269321,0.16327908,109580.0,109570.0,0.38291798]
[1759052269517,0.16327908,109580.0,109570.0,0.74371798]
[1759052271218,0.16327908,109580.0,109570.0,1.01374686]
[1759052272021,0.15727908,109580.0,109570.0,1.01374686]
[1759052272320,0.16027908,109580.0,109570.0,1.01374686]
[1759052273123,0.15827908,109580.0,109570.0,1.01374686]
[1759052273719,0.15527908,109580.0,109570.0,1.01374686]
[1759052273919,0.15827908,109580.0,109570.0,1.01374686]
[1759052274120,0.15727908,109580.0,109570.0,1.01374686]
[1759052274322,0.15727908,109580.0,109570.0,1.01474686]
[1759052274821,0.15827908,109580.0,109570.0,1.01374686]
[1759052276524,0.15727908,109580.0,109570.0,0.74471798]
[1759052276725,0.15427908,109580.0,109570.0,0.74471798]
[1759052280329,0.15427908,109580.0,109570.0,0.74371798]
[1759052280627,0.15427908,109580.0,109570.0,0.74471798]
[1759052282530,0.15427908,109580.0,109570.0,1.01474686]
[1759052302748,0.15427908,109580.0,109570.0,0.74453242]
[1759052317357,0.24548988,109580.0,109570.0,0.1138891]
[1759052317555,0.15427908,109580.0,109570.0,0.38373242]
[1759052318956,1.00628988,109580.0,109570.0,0.1138891]
[1759052319152,2.0116824,109580.0,109570.0,0.1138891]
[1759052319352,0.98103908,109580.0,109570.0,0.38373242]
[1759052319757,0.15427908,109580.0,109570.0,0.38373242]
[1759052321058,0.24548988,109580.0,109570.0,0.38373242]
[1759052324664,0.24548988,109580.0,109570.0,0.1138891]
[1759052324862,0.24548988,109580.0,109570.0,0.38373242]
[1759052333164,0.24548988,109580.0,109570.0,0.1138891]
[1759052333467,0.24548988,109580.0,109570.0,0.38373242]
[1759052337568,1.07228988,109580.0,109570.0,0.38373242]
[1759052338165,0.24548988,109580.0,109570.0,0.38373242]
[1759052338367,1.07228988,109580.0,109570.0,0.38373242]
[1759052347778,1.07228988,109580.0,109570.0,0.1138891]
[1759052347975,1.7029332,109580.0,109570.0,0.1138891]
[1759052351566,1.6814249,109580.0,109570.0,0.1138891]
[1759052354478,1.41158158,109580.0,109570.0,0.1138891]
[1759052354879,1.6814249,109580.0,109570.0,0.1138891]
[1759052355678,1.68148904,109580.0,109570.0,0.1138891]
[1759052360393,1.68148904,109580.0,109570.0,0.0922191]
[1759052360688,1.68148904,109580.0,109570.0,0.001]
[1759052361387,0.85468904,109580.0,109570.0,0.001]
[1759052361690,1.68148904,109580.0,109570.0,0.001]
[1759052364584,1.9515215,109580.0,109570.0,0.27093789]
[1759052366092,1.9515215,109580.0,109570.0,0.29339789]
[1759052366384,1.1247215,109580.0,109570.0,0.29339789]
[1759052366590,1.9515215,109580.0,109570.0,0.29339789]
[1759052367194,1.41164572,109580.0,109570.0,0.29339789]
[1759052367401,1.9515215,109580.0,109570.0,0.27093789]
[1759052368800,1.9515215,109580.0,109570.0,0.001]
[1759052369599,1.9515215,109580.0,109570.0,0.27093789]
[1759052369794,1.9515215,109580.0,109570.0,0.001]
[1759052369995,2.3515215,109580.0,109570.0,0.27093789]
[1759052370198,2.3515215,109580.0,109570.0,0.001]
[1759052371501,1.5247215,109580.0,109570.0,0.001]
[1759052371800,1.5247215,109580.0,109570.0,0.36215699]
[1759052371801,2.3514815,109580.0,109570.0,0.36215699]
[1759052373501,1.81160572,109580.0,109570.0,0.36215699]
[1759052373702,2.3514815,109580.0,109570.0,0.0922191]
[1759052374504,1.5247215,109580.0,109570.0,0.0922191]
[1759052374800,2.3514815,109580.0,109570.0,0.0922191]
[1759052375101,2.3514815,109580.0,109570.0,0.74541699]
[1759052375102,0.13283492,109580.0,109570.0,0.74541699]
[1759052375403,0.95959492,109580.0,109570.0,0.74541699]
[1759052375906,1.05080572,109580.0,109570.0,0.74541699]
[1759052376106,1.32074361,109580.0,109570.0,0.74541699]
[1759052376302,0.49398361,109580.0,109570.0,0.74541699]
[1759052376499,0.11963492,109580.0,109570.0,1.42804488]
[1759052376706,0.94639492,109580.0,109570.0,1.42804488]
[1759052376904,0.11963492,109580.0,109570.0,1.42804488]
[1759052377705,0.13281492,109580.0,109570.0,1.42804488]
[1759052379422,0.13281492,109580.0,109570.0,1.02804488]
[1759052379603,0.13281492,109580.0,109570.0,1.01535488]
[1759052384009,0.13281492,109580.0,109570.0,0.74541699]
[1759052392414,0.09803492,109580.0,109570.0,1.41535488]
[1759052393116,0.07475726,109580.0,109570.0,1.41535488]
[1759052393314,0.02184,109590.0,109580.0,0.1168108]
[1759052393613,0.04511454,109590.0,109580.0,1.01748658]
[1759052393914,0.05400678,109590.0,109580.0,1.01748658]
[1759052394714,0.05500678,109590.0,109580.0,1.01748658]
[1759052395213,0.05800678,109590.0,109580.0,1.01748658]
[1759052396006,0.11731187,109590.0,109580.0,1.01748658]
[1759052396315,0.02427454,109590.0,109580.0,2.51410447]
[1759052397206,0.03352464,109590.0,109580.0,2.51410447]
[1759052397816,0.02427454,109590.0,109580.0,2.51410447]
[1759052398718,0.02427454,109590.0,109580.0,1.68742447]
[1759052398906,0.02727454,109590.0,109580.0,2.51410447]
[1759052399512,0.004,109590.0,109580.0,2.51410447]
[1759052400510,0.004,109590.0,109580.0,2.51406447]
[1759052400706,0.004,109590.0,109580.0,1.68742447]
[1759052400906,0.004,109590.0,109580.0,2.51406447]
[1759052401614,0.003,109590.0,109580.0,2.51406447]
[1759052401814,0.003,109590.0,109580.0,2.51506447]
[1759052402318,0.04428099,109610.0,109600.0,0.1127241]
[1759052402524,0.06753849,109610.0,109600.0,0.65259988]
[1759052403516,0.07353849,109610.0,109600.0,0.65259988]
[1759052404320,0.0642975,109610.0,109600.0,0.65259988]
[1759052405620,0.0672975,109610.0,109600.0,0.65259988]
[1759052405826,0.1584833,109610.0,109600.0,0.65259988]
[1759052406121,0.16754418,109610.0,109600.0,0.65259988]
[1759052409123,0.24033324,109610.0,109600.0,0.65259988]
[1759052418125,0.24033324,109610.0,109600.0,0.1127241]
[1759052418329,0.24033324,109610.0,109600.0,0.65259988]
[1759052423230,0.14914744,109610.0,109600.0,0.65259988]
[1759052426632,0.14914744,109610.0,109600.0,0.38243144]
[1759052427822,0.14314744,109610.0,109600.0,0.1127241]
[1759052428022,0.14614744,109610.0,109600.0,0.38243144]
[1759052428730,0.14314744,109610.0,109600.0,0.38243144]
[1759052429034,0.14914744,109610.0,109600.0,0.38243144]
[1759052429335,0.14714744,109610.0,109600.0,0.38243144]
[1759052429635,0.14114744,109610.0,109600.0,0.38243144]
[1759052429935,0.14414744,109610.0,109600.0,0.38243144]
[1759052432741,0.12088994,109610.0,109600.0,0.38243144]
[1759052432941,0.14416221,109610.0,109600.0,0.38243144]
[1759052433142,0.10912221,109610.0,109600.0,0.75592144]
[1759052433344,0.10006133,109610.0,109600.0,0.75592144]
[1759052434041,0.12235133,109610.0,109600.0,0.75592144]
[1759052434345,0.13150146,109610.0,109600.0,0.75592144]
[1759052440147,0.14480146,109610.0,109600.0,0.74323144]
[1759052440355,0.5056946,109610.0,109600.0,0.1127241]
[1759052440544,0.9056946,109610.0,109600.0,0.1127241]
[1759052441953,0.5056946,109610.0,109600.0,0.1127241]
[1759052450266,0.23598726,109610.0,109600.0,0.1127241]
[1759052450567,0.5056946,109610.0,109600.0,0.1127241]
[1759052450865,0.8664946,109610.0,109600.0,0.1127241]
[1759052451165,0.8664946,109610.0,109600.0,0.38243144]
[1759052451565,0.59678726,109610.0,109600.0,0.38243144]
[1759052451765,0.8664946,109610.0,109600.0,0.38243144]
[1759052452867,0.8664946,109610.0,109600.0,0.1127241]
[1759052453166,0.8664946,109610.0,109600.0,0.38243144]
[1759052453757,0.8664946,109610.0,109600.0,0.1127241]
[1759052454463,0.59678726,109610.0,109600.0,0.1127241]
[1759052454662,0.8664946,109610.0,109600.0,0.1127241]